Business Unit,Business Code,Service Code,Service Label,Organisational Unit,Expenditure  ,Calc Payment Date,Net payment ,Transaction Number ,Supplier ID,Supplier name ,
North West Leicestershire District Council,31UH,HRAHRM,Housing Repairs,HRA Housing Repairs & Maintenance,Decent Home Project,13/09/2013,"319,345.93",1265469,A039980,Kier Services Maintenance East Ltd,
North West Leicestershire District Council,31UH,HRAHRM,Housing Repairs,HRA Housing Repairs & Maintenance,Decent Home Project,13/09/2013,"260,512.17",1265471,A039973,Lovell Partnerships Ltd,
North West Leicestershire District Council,31UH,FINPLA,Finance,Financial Planning,Parish Precepts,25/09/2013,"173,100.00",1265370,A000091,Ashby De La Zouch Town Council,
North West Leicestershire District Council,31UH,EXCH,Finance,Exchequer Services,LEICS FIRE & RESCUE,19/09/2013,"166,374.00",1265727,A028339,"Leicester, Leicestershire &",
North West Leicestershire District Council,31UH,HRAHRM,Housing Repairs,HRA Housing Repairs & Maintenance,Decent Home Project,13/09/2013,"148,214.07",1265470,A039980,Kier Services Maintenance East Ltd,
North West Leicestershire District Council,31UH,FINPLA,Finance,Financial Planning,Parish Precepts,25/09/2013,"83,160.00",1265374,A000300,Castle Donington Parish Council,
North West Leicestershire District Council,31UH,FINPLA,Finance,Financial Planning,Parish Precepts,25/09/2013,"62,500.00",1265380,A000807,Ibstock Parish Council,
North West Leicestershire District Council,31UH,HRAHRM,Housing Repairs,HRA Housing Repairs & Maintenance,General Materials,05/09/2013,"61,691.82",1264980,A036453,Collective Enterprises Ltd,
North West Leicestershire District Council,31UH,HRAHRM,Housing Repairs,HRA Housing Repairs & Maintenance,Decent Home Project,13/09/2013,"58,789.68",1265468,A039980,Kier Services Maintenance East Ltd,
North West Leicestershire District Council,31UH,FINPLA,Finance,Financial Planning,Parish Precepts,25/09/2013,"50,882.00",1265385,A001082,Measham Parish Council,
North West Leicestershire District Council,31UH,HRAHRM,Housing Repairs,HRA Housing Repairs & Maintenance,General Materials,05/09/2013,"48,361.46",1264979,A036453,Collective Enterprises Ltd,
North West Leicestershire District Council,31UH,HRAHRM,Housing Repairs,HRA Housing Repairs & Maintenance,Decent Home Project,13/09/2013,"48,129.68",1265472,A039973,Lovell Partnerships Ltd,
North West Leicestershire District Council,31UH,FINPLA,Finance,Financial Planning,Parish Precepts,25/09/2013,"47,500.22",1265382,A000882,Kegworth Parish Council,
North West Leicestershire District Council,31UH,HRAHRM,Housing Repairs,HRA Housing Repairs & Maintenance,General Materials,05/09/2013,"46,364.33",1264978,A036453,Collective Enterprises Ltd,
North West Leicestershire District Council,31UH,FINPLA,Finance,Financial Planning,Parish Precepts,25/09/2013,"46,075.01",1265371,A000089,Ashby Woulds Town Council,
North West Leicestershire District Council,31UH,ENOWM,Street Management,Environment Waste Management,Trade Refuse Disposal Costs,19/09/2013,"41,426.40",1265541,A000950,Leicestershire County Council,
North West Leicestershire District Council,31UH,HRACS,Housing,HRA Customer Services,Alarm Equipment Repairs,25/09/2013,"36,475.52",1265490,A001701,Tunstall Healthcare (UK) Limited,
North West Leicestershire District Council,31UH,ICT,Information Technology,ICT Services,Machinery & Equipment,04/09/2013,"34,988.90",1260167,A034753,ANS Group Plc,
North West Leicestershire District Council,31UH,HLC,Leisure Centres,Hermitage Leisure Centre,Equipment,04/09/2013,"34,971.94",1264647,A001642,Technogym Uk Limited,
North West Leicestershire District Council,31UH,FINPLA,Finance,Financial Planning,Parish Precepts,25/09/2013,"24,999.77",1265377,A021576,Ellistown And Battleflat Parish Council,
North West Leicestershire District Council,31UH,HPLC,Leisure Centres,Hood Park Leisure Centre,Equipment,04/09/2013,"24,977.99",1264648,A001642,Technogym Uk Limited,
North West Leicestershire District Council,31UH,FINPLA,Finance,Financial Planning,Parish Precepts,25/09/2013,"23,031.26",1265389,A001364,Ravenstone With Snibston PC,
North West Leicestershire District Council,31UH,ECP,Planning & Development,Environment Community Planning,External Legal Fees & Advice,19/09/2013,"22,073.20",1265577,A036120,Bloor Homes East Midlands,
North West Leicestershire District Council,31UH,FINPLA,Finance,Financial Planning,Parish Precepts,25/09/2013,"22,000.00",1265386,A001234,"Oakthorpe, Donisthorpe &",
North West Leicestershire District Council,31UH,ENOT,Street Management,Environment Transport,Fuel,25/09/2013,"21,217.21",1265853,A034942,Pace Petroleum Ltd,
North West Leicestershire District Council,31UH,ENOT,Street Management,Environment Transport,Fuel,04/09/2013,"21,088.15",1264730,A034942,Pace Petroleum Ltd,
North West Leicestershire District Council,31UH,EXCH,Finance,Exchequer Services,Operational Equipment,24/09/2013,"17,750.00",1266564,A038252,Salix Finance,
North West Leicestershire District Council,31UH,FINPLA,Finance,Financial Planning,Parish Precepts,25/09/2013,"15,525.10",1265394,A038617,Whitwick Parish Council,
North West Leicestershire District Council,31UH,FINPLA,Finance,Financial Planning,Parish Precepts,25/09/2013,"15,250.00",1265384,A001010,Long Whatton & Diseworth PC,
North West Leicestershire District Council,31UH,EXCH,Finance,Exchequer Services,Agency Staff,19/09/2013,"14,438.42",1265403,A036958,Comensura Limited,
North West Leicestershire District Council,31UH,FINPLA,Finance,Financial Planning,Parish Precepts,25/09/2013,"13,127.50",1265379,A038616,Hugglescote & Donington Le Heath,
North West Leicestershire District Council,31UH,EXCH,Finance,Exchequer Services,Agency Staff,11/09/2013,"12,708.31",1264916,A036958,Comensura Limited,
North West Leicestershire District Council,31UH,EXCH,Finance,Exchequer Services,Agency Staff,25/09/2013,"12,213.39",1265708,A036958,Comensura Limited,
North West Leicestershire District Council,31UH,EXCH,Finance,Exchequer Services,Agency Staff,04/09/2013,"11,842.03",1264582,A036958,Comensura Limited,
North West Leicestershire District Council,31UH,HRAPBS,Housing,HRA Performance & Business Support,Computing,19/09/2013,"11,700.00",1265591,A002968,Capita Business Services Ltd,
North West Leicestershire District Council,31UH,EXCH,Finance,Exchequer Services,Gas,05/09/2013,"11,272.64",1264971,A035709,Corona Energy Retail 4 Ltd,
North West Leicestershire District Council,31UH,FINPLA,Finance,Financial Planning,Parish Precepts,25/09/2013,"9,977.14",1265392,A001608,Swannington Parish Council,
North West Leicestershire District Council,31UH,FINPLA,Finance,Financial Planning,Parish Precepts,25/09/2013,"9,500.00",1265388,A001257,Packington Parish Council,
North West Leicestershire District Council,31UH,EXCH,Finance,Exchequer Services,Electricity,25/09/2013,"9,479.96",1266512,A034733,British Gas Business,
North West Leicestershire District Council,31UH,PROPFM,Property Services,Property Facilities Management,Repairs and Maintenance,04/09/2013,"8,495.04",1264707,A033342,J Tomlinson Ltd,
North West Leicestershire District Council,31UH,FINPLA,Finance,Financial Planning,Parish Precepts,25/09/2013,"7,500.00",1265372,A000164,Belton Parish Council,
North West Leicestershire District Council,31UH,FINPLA,Finance,Financial Planning,Parish Precepts,25/09/2013,"7,250.00",1265369,A000060,Appleby Magna Parish Council,
North West Leicestershire District Council,31UH,FINPLA,Finance,Financial Planning,Parish Precepts,25/09/2013,"7,000.00",1265376,A000382,Coleorton Parish Council,
North West Leicestershire District Council,31UH,HRAPBS,Housing,HRA Performance & Business Support,Subscriptions,19/09/2013,"6,893.31",1263184,A033843,Housemark Ltd,
North West Leicestershire District Council,31UH,FINPLA,Finance,Financial Planning,Parish Precepts,25/09/2013,"6,500.00",1265373,A000215,Breedon On The Hill Parish Council,
North West Leicestershire District Council,31UH,FINPLA,Finance,Financial Planning,Parish Precepts,25/09/2013,"5,748.50",1265378,A000749,Heather Parish Council,
North West Leicestershire District Council,31UH,ICT,Information Technology,ICT Services,Machinery & Equipment,19/09/2013,"5,500.00",1264386,A034753,ANS Group Plc,
North West Leicestershire District Council,31UH,ICT,Information Technology,ICT Services,Machinery & Equipment,11/09/2013,"5,250.00",1258816,A034753,ANS Group Plc,
North West Leicestershire District Council,31UH,HRAHM,Housing,HRA Housing Management,Postages,11/09/2013,"5,000.00",1265068,A000079,Neopost Limited,
North West Leicestershire District Council,31UH,PROC,Chief Exec,Procurement,Operational Equipment,11/09/2013,"5,000.00",1264778,A039618,Firefly Online Ltd,
North West Leicestershire District Council,31UH,EXCH,Finance,Exchequer Services,Gas,19/09/2013,"4,908.46",1265720,A000958,ESPO,
North West Leicestershire District Council,31UH,HRAHRM,Housing Repairs,HRA Housing Repairs & Maintenance,BOILER REPLACEMENT,11/09/2013,"4,536.86",1265130,A031787,Laker BMS Ltd,
North West Leicestershire District Council,31UH,ICC,Leisure Centres,Ibstock Community College,Swimming Pool Grant,11/09/2013,"4,500.00",1265093,A000804,Ibstock Community College,
North West Leicestershire District Council,31UH,FINPLA,Finance,Financial Planning,Parish Precepts,25/09/2013,"4,500.00",1265395,A001813,Worthington Parish Council,
North West Leicestershire District Council,31UH,ICT,Information Technology,ICT Services,Machinery & Equipment,04/09/2013,"4,500.00",1258981,A034753,ANS Group Plc,
North West Leicestershire District Council,31UH,EXCH,Finance,Exchequer Services,Mobile Telephones,05/09/2013,"4,409.73",1264976,A001861,Vodafone Limited,
North West Leicestershire District Council,31UH,HRAHM,Housing,HRA Housing Management,Legal & Professional Services,19/09/2013,"4,295.00",1265597,A033400,Housing Partners Ltd,
North West Leicestershire District Council,31UH,FINPLA,Finance,Financial Planning,Parish Precepts,25/09/2013,"4,100.00",1265383,A000999,Lockington Cum Hemington PC,
North West Leicestershire District Council,31UH,ECCTV,Planning & Development,Environment - Town Centre/CCTV,Agency Staff,19/09/2013,"3,923.00",1265428,A038132,Premier Security Services (Midlands) Limited,
North West Leicestershire District Council,31UH,EXCH,Finance,Exchequer Services,Training Expenses,19/09/2013,"3,900.00",1265478,A030537,Fields of Learning,
North West Leicestershire District Council,31UH,HRAOPS,Housing,HRA Older Persons Service,Alarm System Telephones,25/09/2013,"3,840.00",1266500,A001701,Tunstall Healthcare (UK) Limited,
North West Leicestershire District Council,31UH,PROPFM,Property Services,Property Facilities Management,Electricity,11/09/2013,"3,803.41",1265067,A030266,Southern Electric,
North West Leicestershire District Council,31UH,HRAHM,Housing,HRA Housing Management,BOILER REPLACEMENT,11/09/2013,"3,743.25",1265140,A031787,Laker BMS Ltd,
North West Leicestershire District Council,31UH,CP,Communications,Corporate - Communications,Vision - printing and distribution,04/09/2013,"3,500.00",1264726,A039357,Print & Digital Associates,
North West Leicestershire District Council,31UH,HRAHRM,Housing Repairs,HRA Housing Repairs & Maintenance,BOILER REPLACEMENT,04/09/2013,"3,441.35",1264882,A031787,Laker BMS Ltd,
North West Leicestershire District Council,31UH,HRAHM,Housing,HRA Housing Management,Tipping Charges,04/09/2013,"3,377.64",1264589,A035471,Ward Recycling,
North West Leicestershire District Council,31UH,HRAHM,Housing,HRA Housing Management,Contract Cleaning,25/09/2013,"3,344.46",1265659,A000950,Leicestershire County Council,
North West Leicestershire District Council,31UH,HR,Corporate Director,Human Resources,Purchases,11/09/2013,"3,267.00",1264952,A038606,Premier Employer Solutions Limited,
North West Leicestershire District Council,31UH,HR,Corporate Director,Human Resources,Fuel,19/09/2013,"3,141.00",1265550,A038606,Premier Employer Solutions Limited,
North West Leicestershire District Council,31UH,EES,Environmental Health,Environmental Services,Grants,04/09/2013,"3,129.00",1264736,A038469,Leicestershire County Council,
North West Leicestershire District Council,31UH,ESS,Street Management,Environment - Street Scene,Boiler Replacement,11/09/2013,"3,101.24",1264924,A040460,Sure Maintenance Ltd,
North West Leicestershire District Council,31UH,FINPLA,Finance,Financial Planning,Parish Precepts,25/09/2013,"3,088.00",1265390,A001524,Snarestone Parish Council,
North West Leicestershire District Council,31UH,ESS,Street Management,Environment - Street Scene,Boiler Replacement,25/09/2013,"3,064.57",1265714,A040460,Sure Maintenance Ltd,
North West Leicestershire District Council,31UH,ESS,Street Management,Environment - Street Scene,Boiler Replacement,25/09/2013,"3,052.89",1265713,A040460,Sure Maintenance Ltd,
North West Leicestershire District Council,31UH,HLC,Leisure Centres,Hermitage Leisure Centre,Electricity,19/09/2013,"2,703.11",1265596,A030266,Southern Electric,
North West Leicestershire District Council,31UH,FINPLA,Finance,Financial Planning,Parish Precepts,25/09/2013,"2,563.05",1265393,A001613,Swepstone Parish Council,
North West Leicestershire District Council,31UH,CS,Communications,Corporate - Customer Services,Postages,04/09/2013,"2,552.28",1264655,A031590,Neopost Finance Limited,
North West Leicestershire District Council,31UH,HRAHRM,Housing Repairs,HRA Housing Repairs & Maintenance,BOILER REPLACEMENT,25/09/2013,"2,542.43",1265916,A031787,Laker BMS Ltd,
North West Leicestershire District Council,31UH,HLBC,Leisure Centres,Hermitage Bar & Catering,Bar Provisions,19/09/2013,"2,508.56",1265451,A039915,LWC - Birmingham,
North West Leicestershire District Council,31UH,FINPLA,Finance,Financial Planning,Parish Precepts,25/09/2013,"2,480.00",1265387,A001251,Osgathorpe Parish Council,
North West Leicestershire District Council,31UH,HRAHRM,Housing Repairs,HRA Housing Repairs & Maintenance,BOILER REPLACEMENT,11/09/2013,"2,479.69",1265144,A031787,Laker BMS Ltd,
North West Leicestershire District Council,31UH,ESS,Street Management,Environment - Street Scene,Boiler Replacement,19/09/2013,"2,456.48",1265400,A040460,Sure Maintenance Ltd,
North West Leicestershire District Council,31UH,HRAHRM,Housing Repairs,HRA Housing Repairs & Maintenance,BOILER REPLACEMENT,11/09/2013,"2,450.41",1265240,A031787,Laker BMS Ltd,
North West Leicestershire District Council,31UH,HRAHRM,Housing Repairs,HRA Housing Repairs & Maintenance,BOILER REPLACEMENT,11/09/2013,"2,400.00",1265145,A031787,Laker BMS Ltd,
North West Leicestershire District Council,31UH,HRAHRM,Housing Repairs,HRA Housing Repairs & Maintenance,BOILER REPLACEMENT,11/09/2013,"2,400.00",1265166,A031787,Laker BMS Ltd,
North West Leicestershire District Council,31UH,HRAHRM,Housing Repairs,HRA Housing Repairs & Maintenance,BOILER REPLACEMENT,11/09/2013,"2,400.00",1265241,A031787,Laker BMS Ltd,
North West Leicestershire District Council,31UH,HRAHRM,Housing Repairs,HRA Housing Repairs & Maintenance,BOILER REPLACEMENT,04/09/2013,"2,400.00",1264857,A031787,Laker BMS Ltd,
North West Leicestershire District Council,31UH,CP,Communications,Corporate - Communications,Vision - printing and distribution,04/09/2013,"2,349.00",1264727,A037318,Local Lifestyle Limited,
North West Leicestershire District Council,31UH,LDLS,Legal & Democratic,Legal Services,Consultants Fees,04/09/2013,"2,345.70",1264738,A040743,Janice Milsom,
North West Leicestershire District Council,31UH,HPLC,Leisure Centres,Hood Park Leisure Centre,Water Charges (Metered),25/09/2013,"2,322.62",1265781,A001468,Severn Trent Water Limited,
North West Leicestershire District Council,31UH,EES,Environmental Health,Environmental Services,Grants,04/09/2013,"2,306.49",1264735,A001092,John Merison BMC Ltd,
North West Leicestershire District Council,31UH,ESS,Street Management,Environment - Street Scene,Boiler Replacement,19/09/2013,"2,246.97",1265398,A040460,Sure Maintenance Ltd,
North West Leicestershire District Council,31UH,ICT,Information Technology,ICT Services,Photo Copier - Copy Charges Rental,04/09/2013,"2,220.77",1264719,A040459,Canon UK Ltd,
North West Leicestershire District Council,31UH,LDLS,Legal & Democratic,Legal Services,Interim Support,04/09/2013,"2,208.33",1264710,A016315,Marrons Consultancies Limited,
North West Leicestershire District Council,31UH,ICT,Information Technology,ICT Services,Administrative Equipment,25/09/2013,"2,200.00",1265756,A034753,ANS Group Plc,
North West Leicestershire District Council,31UH,ENOT,Street Management,Environment Transport,Transport Costs - Tyres,04/09/2013,"2,180.00",1264599,A033268,Bandvulc Tyres Ltd,
North West Leicestershire District Council,31UH,HRAHRM,Housing Repairs,HRA Housing Repairs & Maintenance,Decent Home Project,25/09/2013,"2,152.07",1265875,A039973,Lovell Partnerships Ltd,
North West Leicestershire District Council,31UH,ENOT,Street Management,Environment Transport,Repairs - Parts,04/09/2013,"2,126.00",1264656,A040727,Welham Motor Co. Ltd,
North West Leicestershire District Council,31UH,HRAPBS,Housing,HRA Performance & Business Support,Interim Support,11/09/2013,"2,100.00",1265257,A040578,Matthew Barney,
North West Leicestershire District Council,31UH,HPLC,Leisure Centres,Hood Park Leisure Centre,Electricity,25/09/2013,"2,065.85",1265785,A030266,Southern Electric,
North West Leicestershire District Council,31UH,EEHL,Environmental Health,Environmental Health & Licensing,Grants,11/09/2013,"2,025.00",1264951,A038469,Leicestershire County Council,
North West Leicestershire District Council,31UH,ENOP,Street Management,Environment Parks,External Materials,25/09/2013,"2,000.00",1265866,A039324,Four Counties Tree Specialists Ltd,
North West Leicestershire District Council,31UH,EXCH,Finance,Exchequer Services,Gas,05/09/2013,"1,987.50",1264970,A000958,ESPO,
North West Leicestershire District Council,31UH,ESS,Street Management,Environment - Street Scene,Boiler Replacement,19/09/2013,"1,916.11",1265399,A040460,Sure Maintenance Ltd,
North West Leicestershire District Council,31UH,HPLC,Leisure Centres,Hood Park Leisure Centre,General Repairs,04/09/2013,"1,895.00",1264677,A001069,Mclean Decorators Ltd,
North West Leicestershire District Council,31UH,HR,Corporate Director,Human Resources,Interim Support,25/09/2013,"1,882.40",1265787,A033121,Libby Carter Limited,
North West Leicestershire District Council,31UH,HRAHRM,Housing Repairs,HRA Housing Repairs & Maintenance,Decent Home Project,25/09/2013,"1,790.20",1265876,A039973,Lovell Partnerships Ltd,
North West Leicestershire District Council,31UH,HR,Corporate Director,Human Resources,Legal & Professional Services,19/09/2013,"1,790.05",1265397,A033121,Libby Carter Limited,
North West Leicestershire District Council,31UH,ESS,Street Management,Environment - Street Scene,Repairs and Maintenance,19/09/2013,"1,750.88",1265488,A000548,Electract Limited,
North West Leicestershire District Council,31UH,HRAHRM,Housing Repairs,HRA Housing Repairs & Maintenance,Waste disposal - Trade,04/09/2013,"1,750.00",1264860,A031086,Premier Waste and Recycling,
North West Leicestershire District Council,31UH,HRAHRM,Housing Repairs,HRA Housing Repairs & Maintenance,BOILER REPLACEMENT,11/09/2013,"1,720.50",1265156,A031787,Laker BMS Ltd,
North West Leicestershire District Council,31UH,HLC,Leisure Centres,Hermitage Leisure Centre,Measham LC Lifestyle DD,25/09/2013,"1,708.34",1266583,A027454,Measham Leisure Centre,
North West Leicestershire District Council,31UH,HRAHM,Housing,HRA Housing Management,Solid Fuel,19/09/2013,"1,703.77",1265517,A040689,Hargreaves Energy & Commodities,
North West Leicestershire District Council,31UH,HRAHRM,Housing Repairs,HRA Housing Repairs & Maintenance,BOILER REPLACEMENT,25/09/2013,"1,679.42",1265932,A031787,Laker BMS Ltd,
North West Leicestershire District Council,31UH,FINPLA,Finance,Financial Planning,Parish Precepts,25/09/2013,"1,625.00",1265375,A000322,Charley Parish Council,
North West Leicestershire District Council,31UH,ENOT,Street Management,Environment Transport,Hire Of Transport,11/09/2013,"1,600.00",1265052,A038553,M6 Vehicle Hire,
North West Leicestershire District Council,31UH,HLC,Leisure Centres,Hermitage Leisure Centre,Service Contracts,04/09/2013,"1,555.53",1264610,A000521,Esg Pool Ventilation Ltd,
North West Leicestershire District Council,31UH,HRAHM,Housing,HRA Housing Management,Under Occupancy Incentives,25/09/2013,"1,500.00",1265653,A040741,Mrs Irene Blinko,
North West Leicestershire District Council,31UH,NACCS,Neighbourhoods & Communities,N & C Community Safety,RESPECT,25/09/2013,"1,500.00",1265710,A040809,Castle Donnington Troop,
North West Leicestershire District Council,31UH,LCM,Leisure & Culture,Leisure & Cult Mangt,Other Miscellaneous Expenses,04/09/2013,"1,478.47",1264640,A001208,MRC Community Action,
North West Leicestershire District Council,31UH,HLC,Leisure Centres,Hermitage Leisure Centre,Water Charges (Metered),19/09/2013,"1,458.87",1265401,A001468,Severn Trent Water Limited,
North West Leicestershire District Council,31UH,EES,Environmental Health,Environmental Services,Grants,19/09/2013,"1,446.00",1265525,A038469,Leicestershire County Council,
North West Leicestershire District Council,31UH,HRAHRM,Housing Repairs,HRA Housing Repairs & Maintenance,Disabled facilities grant,04/09/2013,"1,440.01",1264889,A036741,SBP Limited (Trading as Plastal & Permadoor),
North West Leicestershire District Council,31UH,PROPFM,Property Services,Property Facilities Management,General Repairs,04/09/2013,"1,423.52",1264659,A033342,J Tomlinson Ltd,
North West Leicestershire District Council,31UH,HRAHRM,Housing Repairs,HRA Housing Repairs & Maintenance,BOILER REPLACEMENT,25/09/2013,"1,409.92",1265917,A031787,Laker BMS Ltd,
North West Leicestershire District Council,31UH,ENOT,Street Management,Environment Transport,Repairs - Parts,19/09/2013,"1,380.25",1265548,A017895,Geesink Norba Limited,
North West Leicestershire District Council,31UH,ENOT,Street Management,Environment Transport,Water Charges (Metered),11/09/2013,"1,374.53",1265062,A001468,Severn Trent Water Limited,
North West Leicestershire District Council,31UH,ECP,Planning & Development,Environment Community Planning,Tree Officer,25/09/2013,"1,372.92",1265862,A000770,Hinckley & Bosworth Borough Council,
North West Leicestershire District Council,31UH,EES,Environmental Health,Environmental Services,Stray Dog Service,25/09/2013,"1,344.73",1265860,A000385,College Garth Boarding Kennels,
North West Leicestershire District Council,31UH,HRAHRM,Housing Repairs,HRA Housing Repairs & Maintenance,BOILER REPLACEMENT,11/09/2013,"1,310.85",1265146,A031787,Laker BMS Ltd,
North West Leicestershire District Council,31UH,EBC,Planning & Development,Building Control,Computer Software Maintenance,11/09/2013,"1,298.00",1264918,A024994,Resolution Data Management Ltd,
North West Leicestershire District Council,31UH,ENOT,Street Management,Environment Transport,Operational Equipment,04/09/2013,"1,297.50",1264725,A032890,DR Baling Wire Manufacturers Ltd,
North West Leicestershire District Council,31UH,HRAHRM,Housing Repairs,HRA Housing Repairs & Maintenance,BOILER REPLACEMENT,11/09/2013,"1,278.72",1265202,A031787,Laker BMS Ltd,
North West Leicestershire District Council,31UH,HRAHM,Housing,HRA Housing Management,BOILER REPLACEMENT,11/09/2013,"1,236.02",1265139,A031787,Laker BMS Ltd,
North West Leicestershire District Council,31UH,HRAPBS,Housing,HRA Performance & Business Support,The Art of Reminiscing Project,19/09/2013,"1,225.00",1265589,A036108,Digital Video Media,
North West Leicestershire District Council,31UH,HRAHM,Housing,HRA Housing Management,Energy Surveys,19/09/2013,"1,224.00",1265416,A039091,Energico,
North West Leicestershire District Council,31UH,HRAHRM,Housing Repairs,HRA Housing Repairs & Maintenance,BOILER REPLACEMENT,11/09/2013,"1,190.86",1265242,A031787,Laker BMS Ltd,
North West Leicestershire District Council,31UH,HRAHRM,Housing Repairs,HRA Housing Repairs & Maintenance,BOILER REPLACEMENT,25/09/2013,"1,160.00",1265933,A031787,Laker BMS Ltd,
North West Leicestershire District Council,31UH,HLC,Leisure Centres,Hermitage Leisure Centre,Consultation,11/09/2013,"1,140.00",1264728,A034754,Customer Research Technology Ltd,
North West Leicestershire District Council,31UH,EXCH,Finance,Exchequer Services,Collection - Cash,19/09/2013,"1,138.86",1265396,A004468,Kings Armoured Security Services Ltd,
North West Leicestershire District Council,31UH,HLC,Leisure Centres,Hermitage Leisure Centre,General Repairs,04/09/2013,"1,125.00",1264611,A001069,Mclean Decorators Ltd,
North West Leicestershire District Council,31UH,ENOP,Street Management,Environment Parks,External Materials,04/09/2013,"1,124.28",1264578,A000671,Glasdon UK Ltd,
North West Leicestershire District Council,31UH,ENOT,Street Management,Environment Transport,Transport Costs - Tyres,25/09/2013,"1,120.00",1265809,A034248,Stapletons Tyre Service Ltd,
North West Leicestershire District Council,31UH,LDLS,Legal & Democratic,Legal Services,External Legal Fees & Advice,19/09/2013,"1,107.50",1265509,A000251,Browne Jacobson LLP,
North West Leicestershire District Council,31UH,CULTEV,Leisure & Culture,Cultural Services Arts & Events,Special Events,04/09/2013,"1,050.00",1264721,A040563,Sable Studio Gallery,
North West Leicestershire District Council,31UH,HRAHRM,Housing Repairs,HRA Housing Repairs & Maintenance,Building services,11/09/2013,"1,029.25",1265222,A033342,J Tomlinson Ltd,
North West Leicestershire District Council,31UH,HS,Housing Strategy,Community - Housing Strategy,Other Services,25/09/2013,"1,020.00",1265661,A036464,Shelter Training & Publications,
North West Leicestershire District Council,31UH,HS,Housing Strategy,Community - Housing Strategy,Other Services,25/09/2013,"1,020.00",1265852,A036464,Shelter Training & Publications,
North West Leicestershire District Council,31UH,HPLC,Leisure Centres,Hood Park Leisure Centre,Water Charges (Metered),25/09/2013,"1,019.00",1265780,A001468,Severn Trent Water Limited,
North West Leicestershire District Council,31UH,EES,Environmental Health,Environmental Services,Welfare Funerals,04/09/2013,"1,013.00",1264709,A023141,The Co-operative Funeralcare,
North West Leicestershire District Council,31UH,EBC,Planning & Development,Building Control,Expenditure against earmarked reserve,25/09/2013,"1,007.28",1265837,A002189,Local Government Association,
North West Leicestershire District Council,31UH,LDLS,Legal & Democratic,Legal Services,Interim Support,19/09/2013,"1,000.00",1265435,A000935,Leicester City Council,
North West Leicestershire District Council,31UH,ESS,Street Management,Environment - Street Scene,Other Miscellaneous Expenses,19/09/2013,"1,000.00",1265426,A029490,King Edward VII Science & Sport,1
North West Leicestershire District Council,31UH,LCM,Leisure & Culture,Leisure & Cult Mangt,Other Miscellaneous Expenses,04/09/2013,"1,000.00",1264639,A036877,West Leicestershire Mind,
North West Leicestershire District Council,31UH,NACCS,Neighbourhoods & Communities,N & C Community Safety,RESPECT,19/09/2013,"1,000.00",1265583,A034793,Castle Rock High School,
North West Leicestershire District Council,31UH,NACCS,Neighbourhoods & Communities,N & C Community Safety,Community Safety,11/09/2013,"1,000.00",1264921,A037155,Victim Support,
North West Leicestershire District Council,31UH,ENOT,Street Management,Environment Transport,Fuel,04/09/2013,991.76,1264731,A034942,Pace Petroleum Ltd,
North West Leicestershire District Council,31UH,ECCTV,Planning & Development,Environment - Town Centre/CCTV,Electricity,25/09/2013,967.82,1266499,A030266,Southern Electric,
North West Leicestershire District Council,31UH,EPP,Planning & Development,Environment Planning Policy,Examination of Core Strategy,11/09/2013,955.02,1265023,A038890,Planning Inquiry Administration Services,
North West Leicestershire District Council,31UH,HRAHM,Housing,HRA Housing Management,Energy Surveys,19/09/2013,952.00,1265415,A039091,Energico,
North West Leicestershire District Council,31UH,FINPLA,Finance,Financial Planning,Recreation & Play Areas,04/09/2013,948.10,1264658,A021576,Ellistown And Battleflat Parish Council,
North West Leicestershire District Council,31UH,HRAHRM,Housing Repairs,HRA Housing Repairs & Maintenance,BOILER REPLACEMENT,11/09/2013,948.10,1265151,A031787,Laker BMS Ltd,
North West Leicestershire District Council,31UH,HR,Corporate Director,Human Resources,Training Expenses,04/09/2013,937.41,1264654,A001395,Euro RSCG People T/A Havas People Ltd,
North West Leicestershire District Council,31UH,ENOT,Street Management,Environment Transport,Non Scheduled Maintenance - Parts,04/09/2013,926.39,1264768,A000486,Digraph Transport Supplies Ltd,
North West Leicestershire District Council,31UH,NACCS,Neighbourhoods & Communities,N & C Community Safety,RESPECT,19/09/2013,900.00,1265582,A040805,Doninthorpe Youth Club,
North West Leicestershire District Council,31UH,HRAHRM,Housing Repairs,HRA Housing Repairs & Maintenance,BOILER REPLACEMENT,11/09/2013,874.99,1265135,A031787,Laker BMS Ltd,
North West Leicestershire District Council,31UH,HLC,Leisure Centres,Hermitage Leisure Centre,Water Charges (Metered),04/09/2013,874.00,1264737,A001468,Severn Trent Water Limited,
North West Leicestershire District Council,31UH,HR,Corporate Director,Human Resources,Employee Advertising,25/09/2013,850.00,1266582,A040485,Totaljobs Group Ltd,
North West Leicestershire District Council,31UH,HRAHRM,Housing Repairs,HRA Housing Repairs & Maintenance,Building services,11/09/2013,839.50,1265215,A033342,J Tomlinson Ltd,
North West Leicestershire District Council,31UH,HRAHRM,Housing Repairs,HRA Housing Repairs & Maintenance,Building services,11/09/2013,839.50,1265216,A033342,J Tomlinson Ltd,
North West Leicestershire District Council,31UH,HRAHRM,Housing Repairs,HRA Housing Repairs & Maintenance,Building services,11/09/2013,839.50,1265217,A033342,J Tomlinson Ltd,
North West Leicestershire District Council,31UH,HRAHRM,Housing Repairs,HRA Housing Repairs & Maintenance,Building services,11/09/2013,839.50,1265218,A033342,J Tomlinson Ltd,
North West Leicestershire District Council,31UH,EXCH,Finance,Exchequer Services,Service Contracts,25/09/2013,834.00,1266511,A002968,Capita Business Services Ltd,
North West Leicestershire District Council,31UH,HR,Corporate Director,Human Resources,Operational Equipment,11/09/2013,826.90,1265254,A028815,HS Direct Ltd,
North West Leicestershire District Council,31UH,HPLC,Leisure Centres,Hood Park Leisure Centre,General Repairs,25/09/2013,817.97,1265770,A000969,J P Lennard Ltd,
North West Leicestershire District Council,31UH,HLBC,Leisure Centres,Hermitage Bar & Catering,Catering Provisions,19/09/2013,816.81,1265467,A001264,Palmer Harvey Mclane Ltd,
North West Leicestershire District Council,31UH,HPLC,Leisure Centres,Hood Park Leisure Centre,Equipment For Resale,04/09/2013,815.40,1264699,A001833,Zoggs International Ltd,
North West Leicestershire District Council,31UH,HRAHRM,Housing Repairs,HRA Housing Repairs & Maintenance,BOILER REPLACEMENT,25/09/2013,805.00,1265975,A031787,Laker BMS Ltd,
North West Leicestershire District Council,31UH,HRAHM,Housing,HRA Housing Management,Electricity,11/09/2013,800.20,1265094,A030266,Southern Electric,
North West Leicestershire District Council,31UH,ENOT,Street Management,Environment Transport,Repairs - Parts,25/09/2013,792.02,1265811,A001131,Mobile Hydraulics Ltd,
North West Leicestershire District Council,31UH,HRAOPS,Housing,HRA Older Persons Service,Cleaning & Domestic Equipment,25/09/2013,775.00,1265669,A034116,A J Contracts,
North West Leicestershire District Council,31UH,HRAHRM,Housing Repairs,HRA Housing Repairs & Maintenance,Waste disposal - Trade,04/09/2013,771.01,1264864,A031086,Premier Waste and Recycling,
North West Leicestershire District Council,31UH,HRAHRM,Housing Repairs,HRA Housing Repairs & Maintenance,BOILER REPLACEMENT,11/09/2013,764.93,1265236,A031787,Laker BMS Ltd,
North West Leicestershire District Council,31UH,ENOT,Street Management,Environment Transport,Fuel,19/09/2013,760.00,1265414,A000625,Ford & Slater Group Ltd,
North West Leicestershire District Council,31UH,ENOT,Street Management,Environment Transport,Transport Costs - Tyres,25/09/2013,752.00,1265808,A034248,Stapletons Tyre Service Ltd,
North West Leicestershire District Council,31UH,NACCS,Neighbourhoods & Communities,N & C Community Safety,RESPECT,11/09/2013,750.00,1265261,A039879,Lewis Charlton School,
North West Leicestershire District Council,31UH,HRAHRM,Housing Repairs,HRA Housing Repairs & Maintenance,Waste disposal - Trade,04/09/2013,750.00,1264876,A031086,Premier Waste and Recycling,
North West Leicestershire District Council,31UH,ENOT,Street Management,Environment Transport,General Materials,04/09/2013,749.70,1264649,A017624,BPI Recycled Products,
North West Leicestershire District Council,31UH,CULTIC,Leisure & Culture,Cultural Services TIC,Theatre Tickets,25/09/2013,727.60,1265846,A040836,National Forest Company,
North West Leicestershire District Council,31UH,HR,Corporate Director,Human Resources,Publicity & Promotion,04/09/2013,725.70,1264653,A001395,Euro RSCG People T/A Havas People Ltd,
North West Leicestershire District Council,31UH,ENOT,Street Management,Environment Transport,Repairs - Parts,11/09/2013,723.65,1265126,A033258,R Massey & Son (Woodville) Ltd,
North West Leicestershire District Council,31UH,HLC,Leisure Centres,Hermitage Leisure Centre,Service Contracts,25/09/2013,723.00,1265786,A037677,Sterling Hydrotech Limited,
North West Leicestershire District Council,31UH,HRAHRM,Housing Repairs,HRA Housing Repairs & Maintenance,BOILER REPLACEMENT,25/09/2013,713.00,1265963,A031787,Laker BMS Ltd,
North West Leicestershire District Council,31UH,HRAHRM,Housing Repairs,HRA Housing Repairs & Maintenance,BOILER REPLACEMENT,11/09/2013,710.40,1265203,A031787,Laker BMS Ltd,
North West Leicestershire District Council,31UH,ICT,Information Technology,ICT Services,Photo Copier - Copy Charges Rental,05/09/2013,702.12,1264974,A001301,The Danwood Group Ltd,
North West Leicestershire District Council,31UH,NACCS,Neighbourhoods & Communities,N & C Community Safety,Community Safety,11/09/2013,700.00,1265044,A040709,Warning Zone Ltd,
North West Leicestershire District Council,31UH,CHEX,Chief Exec,Chief Executive,External Legal Fees & Advice,11/09/2013,689.11,1264925,A039356,Broadsted Associates Ltd,
North West Leicestershire District Council,31UH,ENOT,Street Management,Environment Transport,Repairs - Parts,11/09/2013,686.27,1265103,A000906,Kovacs & Son Engineers,
North West Leicestershire District Council,31UH,HRAHRM,Housing Repairs,HRA Housing Repairs & Maintenance,Composite Door Sets,11/09/2013,685.75,1265250,A038041,I G Doors Limited,
North West Leicestershire District Council,31UH,EEHL,Environmental Health,Environmental Health & Licensing,Vet Inspection,11/09/2013,675.35,1265030,A033670,Eville And Jones Limited,
North West Leicestershire District Council,31UH,LDLS,Legal & Democratic,Legal Services,External Legal Fees & Advice,19/09/2013,675.00,1265427,A039444,Mr Timothy Leader,
North West Leicestershire District Council,31UH,ENOT,Street Management,Environment Transport,Fuel,25/09/2013,671.10,1265854,A034942,Pace Petroleum Ltd,
North West Leicestershire District Council,31UH,ENOT,Street Management,Environment Transport,Licences - Road Fund Licence,19/09/2013,650.00,1265599,A008559,Post Office Limited,
North West Leicestershire District Council,31UH,HLBC,Leisure Centres,Hermitage Bar & Catering,Bar Provisions,04/09/2013,647.85,1264622,A039915,LWC - Birmingham,
North West Leicestershire District Council,31UH,HRAHRM,Housing Repairs,HRA Housing Repairs & Maintenance,Waste disposal - Trade,04/09/2013,647.01,1264875,A031086,Premier Waste and Recycling,
North West Leicestershire District Council,31UH,EDC,Planning & Development,Environment - Development Control,Advertising,11/09/2013,641.83,1264942,A001395,Euro RSCG People T/A Havas People Ltd,
North West Leicestershire District Council,31UH,PROPCL,Property Services,Property Commercial Lettings,General Repairs,19/09/2013,632.00,1264383,A020453,Century Electronic Security Limited,
North West Leicestershire District Council,31UH,PROPCL,Property Services,Property Commercial Lettings,Telephones,11/09/2013,628.47,1265097,A000233,British Telecommunications Plc,
North West Leicestershire District Council,31UH,HRAHRM,Housing Repairs,HRA Housing Repairs & Maintenance,Consultants Fees,11/09/2013,625.00,1265109,A036053,Cope Safety Management Limited,
North West Leicestershire District Council,31UH,HRAHRM,Housing Repairs,HRA Housing Repairs & Maintenance,Gas & Electricity - Gas installation,25/09/2013,622.33,1265915,A026237,British Gas Trading Limited,
North West Leicestershire District Council,31UH,HPLC,Leisure Centres,Hood Park Leisure Centre,Hire Of Sports Hall - Public,04/09/2013,620.00,1264641,A040725,Pulse Performance,
North West Leicestershire District Council,31UH,ENOT,Street Management,Environment Transport,Repairs - Parts,11/09/2013,614.23,1264775,A000522,Dennis Eagle Limited,
North West Leicestershire District Council,31UH,HRAHM,Housing,HRA Housing Management,Energy Surveys,19/09/2013,612.00,1265409,A039091,Energico,
North West Leicestershire District Council,31UH,HLC,Leisure Centres,Hermitage Leisure Centre,Protective Clothing,19/09/2013,611.60,1265354,A029827,Corporate Leisure,
North West Leicestershire District Council,31UH,ICT,Information Technology,ICT Services,Consumable Materials,25/09/2013,595.62,1265754,A038178,Antalis Limited,
North West Leicestershire District Council,31UH,ENOP,Street Management,Environment Parks,Training Expenses,19/09/2013,595.00,1265439,A000376,J Coates (Hgv Services) Ltd,
North West Leicestershire District Council,31UH,HPBC,Leisure Centres,Hood Park Bar and Catering,Catering Provisions,25/09/2013,591.56,1265793,A001264,Palmer Harvey Mclane Ltd,
North West Leicestershire District Council,31UH,PROPFM,Property Services,Property Facilities Management,General Repairs,04/09/2013,585.70,1264632,A033342,J Tomlinson Ltd,
North West Leicestershire District Council,31UH,HPBC,Leisure Centres,Hood Park Bar and Catering,Catering Provisions,11/09/2013,583.85,1264994,A001264,Palmer Harvey Mclane Ltd,
North West Leicestershire District Council,31UH,HPLC,Leisure Centres,Hood Park Leisure Centre,Telephone Charge / Rental,04/09/2013,580.83,1264720,A035373,Virgin Media Business,
North West Leicestershire District Council,31UH,EDC,Planning & Development,Environment - Development Control,Advertising,19/09/2013,575.48,1265585,A001395,Euro RSCG People T/A Havas People Ltd,
North West Leicestershire District Council,31UH,HS,Housing Strategy,Community - Housing Strategy,Other Services,04/09/2013,560.00,1264662,A032364,Pinewood Lodge,
North West Leicestershire District Council,31UH,HS,Housing Strategy,Community - Housing Strategy,Other Services,04/09/2013,560.00,1264663,A032364,Pinewood Lodge,
North West Leicestershire District Council,31UH,HLC,Leisure Centres,Hermitage Leisure Centre,Summer/School Holiday Activities,19/09/2013,552.00,1265357,A033748,Vocals Entertainment Ltd,
North West Leicestershire District Council,31UH,PROPFM,Property Services,Property Facilities Management,General Repairs,25/09/2013,550.13,1266506,A033342,J Tomlinson Ltd,
North West Leicestershire District Council,31UH,HRAHRM,Housing Repairs,HRA Housing Repairs & Maintenance,Waste disposal - Trade,11/09/2013,550.07,1265160,A031086,Premier Waste and Recycling,
North West Leicestershire District Council,31UH,ICT,Information Technology,ICT Services,Consumable Materials,04/09/2013,550.00,1264777,A033406,Alfred Willday & Son Ltd,
North West Leicestershire District Council,31UH,HRAHRM,Housing Repairs,HRA Housing Repairs & Maintenance,Composite Door Sets,11/09/2013,539.91,1265249,A038041,I G Doors Limited,
North West Leicestershire District Council,31UH,CULTIC,Leisure & Culture,Cultural Services TIC,Premises Rents,19/09/2013,537.50,1265499,A000950,Leicestershire County Council,
North West Leicestershire District Council,31UH,HPLC,Leisure Centres,Hood Park Leisure Centre,General Repairs,04/09/2013,535.83,1264671,A001092,John Merison BMC Ltd,
North West Leicestershire District Council,31UH,HLC,Leisure Centres,Hermitage Leisure Centre,Alternative Fitness Suite,25/09/2013,522.58,1265762,A005413,Elliott Group Limited,
North West Leicestershire District Council,31UH,HRAHRM,Housing Repairs,HRA Housing Repairs & Maintenance,BOILER REPLACEMENT,25/09/2013,522.00,1265962,A031787,Laker BMS Ltd,
North West Leicestershire District Council,31UH,ENOT,Street Management,Environment Transport,Repairs - Parts,25/09/2013,519.59,1264770,A017895,Geesink Norba Limited,
North West Leicestershire District Council,31UH,HPBC,Leisure Centres,Hood Park Bar and Catering,Bar Provisions,11/09/2013,518.11,1265008,A039915,LWC - Birmingham,
North West Leicestershire District Council,31UH,PROPCL,Property Services,Property Commercial Lettings,Equipment Operating Leases,04/09/2013,516.05,1264657,A032630,Pitney Bowes Finance Plc,
North West Leicestershire District Council,31UH,ICT,Information Technology,ICT Services,Operational Equipment - Rep & Maint,05/09/2013,514.76,1264973,A001301,The Danwood Group Ltd,
North West Leicestershire District Council,31UH,HRAHRM,Housing Repairs,HRA Housing Repairs & Maintenance,Waste disposal - Trade,04/09/2013,506.29,1264870,A031086,Premier Waste and Recycling,
North West Leicestershire District Council,31UH,PROPCL,Property Services,Property Commercial Lettings,Contract Cleaning,25/09/2013,506.18,1265798,A003037,Coalville Cleaning Services,
North West Leicestershire District Council,31UH,PROPCL,Property Services,Property Commercial Lettings,Contract Cleaning,04/09/2013,506.18,1264643,A003037,Coalville Cleaning Services,
